bitfinex/quotes_BTCUSD_20251205
["timestamp","ask_amount","ask_price","bid_price","bid_amount"]
[1764952526872,4e-06,88956.0,88952.0,0.02192173]
[1764952527073,4e-06,88956.0,88953.0,0.01236637]
[1764952527481,4e-06,88956.0,88954.0,0.08061173]
[1764952527724,0.001004,88956.0,88955.0,0.05370281]
[1764952527930,4e-06,88956.0,88955.0,0.11239281]
[1764952528081,4e-06,88956.0,88955.0,0.103095]
[1764952528294,0.001004,88956.0,88955.0,0.103095]
[1764952528721,4e-06,88956.0,88955.0,0.103095]
[1764952528923,0.001004,88956.0,88955.0,0.06569]
[1764952529226,0.06352699,88956.0,88955.0,0.013569]
[1764952529425,0.06352699,88956.0,88955.0,0.007]
[1764952529630,0.06352699,88956.0,88955.0,0.06569]
[1764952529631,0.001004,88956.0,88955.0,0.06569]
[1764952529790,0.06352699,88956.0,88955.0,0.007]
[1764952530205,0.06352699,88956.0,88955.0,0.08161173]
[1764952530206,4e-06,88956.0,88955.0,0.08161173]
[1764952530409,0.0002,88980.0,88955.0,0.05969]
[1764952530796,0.0002,88980.0,88971.0,0.02192173]
[1764952530967,0.06252299,88979.0,88968.0,0.02192173]
[1764952531219,0.06452299,88956.0,88955.0,0.016]
[1764952531368,0.06452299,88956.0,88955.0,0.013]
[1764952531729,0.00024387,88964.0,88955.0,0.05869]
[1764952531912,0.06252299,88963.0,88956.0,0.005869]
[1764952532116,0.06413586,88963.0,88955.0,0.001]
[1764952532302,0.06252299,88961.0,88955.0,0.001]
[1764952532643,0.06252299,88955.0,88940.0,0.59680861]
[1764952532809,0.06252299,88955.0,88940.0,0.00011961]
[1764952532810,0.00161287,88955.0,88940.0,0.00011961]
[1764952533007,0.00161287,88955.0,88940.0,0.59177221]
[1764952533314,0.00161287,88955.0,88941.0,0.06292483]
[1764952534094,0.00161287,88955.0,88940.0,0.00011961]
[1764952534095,0.16005299,88954.0,88940.0,0.00011961]
[1764952534269,0.16166586,88954.0,88940.0,0.00011961]
[1764952534613,0.06413586,88954.0,88941.0,0.005]
[1764952534821,0.06413586,88954.0,88940.0,0.00011961]
[1764952535263,0.06513586,88954.0,88940.0,0.00411961]
[1764952535457,0.06513586,88954.0,88940.0,0.00011961]
[1764952535458,0.06413586,88954.0,88940.0,0.00011961]
[1764952535815,0.06513586,88954.0,88941.0,0.003]
[1764952537280,0.06413586,88954.0,88941.0,0.05869]
[1764952537491,0.01824,88961.0,88953.0,0.05869]
[1764952537816,0.004,88954.0,88953.0,0.05869]
[1764952537987,0.06252299,88960.0,88953.0,0.05869]
[1764952538283,0.01824,88961.0,88954.0,0.005869]
[1764952538848,0.06252299,88960.0,88953.0,0.02392173]
[1764952539289,0.06252299,88960.0,88953.0,0.02192173]
[1764952540655,0.06252299,88960.0,88954.0,0.002]
[1764952540853,0.06252299,88960.0,88953.0,0.02192173]
[1764952541263,0.07752299,88960.0,88953.0,0.02392173]
[1764952541500,0.06252299,88960.0,88953.0,0.02192173]
[1764952541702,0.06413586,88960.0,88942.0,0.00588096]
[1764952542017,0.07913586,88960.0,88954.0,0.002]
[1764952542166,0.06613586,88960.0,88944.0,0.02192173]
[1764952542364,0.06613586,88960.0,88944.0,0.00568451]
[1764952542560,0.06613586,88960.0,88953.0,0.002]
[1764952542561,0.38552299,88958.0,88953.0,0.002]
[1764952542762,0.06413586,88954.0,88953.0,0.002]
[1764952543078,0.61176586,88954.0,88953.0,0.002]
[1764952543665,0.61176586,88954.0,88940.0,0.00011961]
[1764952543864,0.38552299,88953.0,88940.0,0.01013157]
[1764952544106,0.38713586,88953.0,88940.0,0.01013157]
[1764952544280,0.38552299,88951.0,88940.0,0.00011961]
[1764952544481,0.06252299,88949.0,88940.0,0.00011961]
[1764952544680,0.40903985,88949.0,88940.0,0.00011961]
[1764952545021,0.50656985,88949.0,88940.0,0.00011961]
[1764952545431,0.50656985,88949.0,88940.0,0.00111961]
[1764952545941,0.06413586,88949.0,88940.0,0.00011961]
[1764952546166,0.06513586,88949.0,88940.0,0.01023157]
[1764952546348,0.001,88949.0,88948.0,0.05869]
[1764952546567,0.01924,88949.0,88948.0,0.07166052]
[1764952546759,0.01924,88949.0,88948.0,0.13035052]
[1764952546922,0.001,88949.0,88948.0,0.13035052]
[1764952547126,0.006,88949.0,88948.0,0.15227225]
[1764952547459,0.01824,88957.0,88948.0,0.15227225]
[1764952547460,0.01824,88957.0,88948.0,0.13035052]
[1764952547671,0.06646,88949.0,88940.0,0.02217855]
[1764952547843,0.38552299,88948.0,88940.0,0.00011961]
[1764952548045,0.06252299,88948.0,88940.0,0.00011961]
[1764952548223,0.003,88949.0,88940.0,0.00011961]
[1764952548407,0.009,88949.0,88948.0,0.001]
[1764952548608,0.009,88949.0,88940.0,0.00011961]
[1764952548609,0.38552299,88953.0,88940.0,0.00011961]
[1764952549023,0.013,88948.0,88940.0,0.00011961]
[1764952549219,0.06252299,88947.0,88941.0,0.05869]
[1764952549625,0.013,88948.0,88941.0,0.05869]
[1764952549626,0.013,88948.0,88946.0,0.05869]
[1764952549826,0.013,88948.0,88947.0,0.05869]
[1764952550030,0.07552299,88948.0,88947.0,0.05869]
[1764952550233,0.06252299,88948.0,88947.0,0.05869]
[1764952550429,0.06252299,88948.0,88947.0,0.06457096]
[1764952550630,0.06252299,88948.0,88947.0,0.12326096]
[1764952551234,0.06452299,88948.0,88947.0,0.12326096]
[1764952551496,0.06252299,88948.0,88947.0,0.14518269]
[1764952551983,0.007,88948.0,88947.0,0.14518269]
[1764952552145,0.01824,88962.0,88957.0,0.02192173]
[1764952552344,0.01824,88962.0,88961.0,0.05869]
[1764952552548,0.01824,88962.0,88961.0,0.06675117]
[1764952552760,0.01824,88971.0,88961.0,0.12544117]
[1764952553065,0.01824,88971.0,88963.0,0.05869]
[1764952553465,0.01824,88971.0,88963.0,0.11738]
[1764952553992,0.06252299,88970.0,88963.0,0.11738]
[1764952554173,0.06576686,88964.0,88963.0,0.11738]
[1764952554371,0.06576686,88964.0,88963.0,0.12992412]
[1764952554577,0.06276686,88964.0,88963.0,0.07123412]
[1764952554776,0.06252299,88963.0,88947.0,0.00588096]
[1764952554963,0.06252299,88961.0,88947.0,0.00588096]
[1764952555165,0.06252299,88959.0,88947.0,0.00588096]
[1764952555457,0.06252299,88962.0,88947.0,0.00588096]
[1764952555679,0.01379606,88961.0,88948.0,0.05869]
[1764952555879,0.06252299,88962.0,88949.0,0.00870573]
[1764952556518,0.06252299,88962.0,88949.0,0.05869]
[1764952557133,0.002,88961.0,88954.0,0.02192173]
[1764952557333,0.06252299,88962.0,88961.0,0.05869]
[1764952557706,0.002,88962.0,88961.0,0.13930173]
[1764952557908,0.00024387,88964.0,88961.0,0.11738]
[1764952558150,0.00024387,88964.0,88963.0,0.05869]
[1764952558544,0.00024387,88964.0,88963.0,0.11738]
[1764952559224,0.0002,88980.0,88975.0,0.02192173]
[1764952559435,0.0002,88980.0,88979.0,0.11934173]
[1764952559810,0.0002,88980.0,88979.0,0.17803173]
[1764952560162,0.0002,88980.0,88979.0,0.03873]
[1764952560343,0.0002,88980.0,88979.0,0.15611]
[1764952561187,0.00181287,88980.0,88979.0,0.03873]
[1764952561527,0.06252299,88979.0,88967.0,0.03873]
[1764952561693,0.06252299,88967.0,88960.0,0.03873]
[1764952561894,0.06252299,88960.0,88947.0,0.00588096]
[1764952562115,0.06413586,88960.0,88947.0,0.00600057]
[1764952562261,0.06413586,88960.0,88947.0,0.00011961]
[1764952563350,0.44963299,88948.0,88947.0,0.00111961]
[1764952563480,0.46944586,88948.0,88947.0,0.00111961]
[1764952563922,0.40533586,88948.0,88947.0,0.00111961]
[1764952564135,0.08233586,88948.0,88947.0,0.05980961]
[1764952564491,0.08072299,88948.0,88947.0,0.07065957]
[1764952564827,0.08233586,88948.0,88947.0,0.00011961]
[1764952565034,0.0916939,88948.0,88947.0,0.00011961]
[1764952565436,0.5603539,88948.0,88947.0,0.00011961]
[1764952565635,0.58225789,88948.0,88947.0,0.00011961]
[1764952566044,0.5421539,88948.0,88947.0,0.00011961]
[1764952566291,0.5603539,88948.0,88947.0,0.00011961]
[1764952566477,0.323,88945.0,88936.0,0.1]
[1764952566680,0.44566686,88937.0,88936.0,0.1]
[1764952567189,0.59973985,88937.0,88936.0,0.1]
[1764952568167,0.59283586,88937.0,88936.0,0.1]
[1764952568368,0.61473985,88937.0,88936.0,0.1]
[1764952568719,5.6469484,88937.0,88936.0,0.1]
[1764952568921,0.58083586,88937.0,88936.0,0.07441895]
[1764952569123,1.95783985,88937.0,88936.0,0.07441895]
[1764952569513,0.06252299,88916.0,88911.0,0.00208907]
[1764952569713,0.49505299,88912.0,88911.0,0.00208907]
[1764952570173,0.58660299,88912.0,88911.0,0.00208907]
[1764952570755,0.58666563,88912.0,88911.0,0.00208907]
[1764952570960,0.60490563,88912.0,88911.0,0.00208907]
[1764952571256,0.62590563,88912.0,88911.0,0.00208907]
[1764952571495,0.62680962,88912.0,88911.0,0.00208907]
[1764952571911,0.62980962,88912.0,88911.0,0.00208907]
[1764952572113,0.60790563,88912.0,88911.0,0.00208907]
[1764952572357,0.49811563,88912.0,88911.0,0.00208907]
[1764952572562,0.38552299,88911.0,88852.0,0.06078]
[1764952572761,0.60790563,88912.0,88840.0,0.00099999]
[1764952572762,0.38552299,88893.0,88858.0,0.06078]
[1764952572963,0.06252299,88885.0,88858.0,0.06078]
[1764952573168,0.06252299,88885.0,88853.0,0.01996]
[1764952573369,0.38552299,88883.0,88853.0,0.01996]
[1764952573567,0.38552299,88883.0,88854.0,0.04229571]
[1764952573902,0.38552299,88883.0,88882.0,0.00088511]
[1764952574043,0.38552299,88883.0,88882.0,0.00128445]
[1764952574539,0.21818299,88883.0,88882.0,0.00128445]
[1764952574740,0.06452299,88883.0,88882.0,0.00128445]
[1764952574948,0.00199998,88920.0,88882.0,0.00128445]
[1764952574949,0.09155,88930.0,88882.0,0.12284445]
[1764952575263,0.09155,88930.0,88900.0,0.59139879]
[1764952575264,0.01824,88929.0,88900.0,0.59139879]
[1764952575502,0.01985287,88929.0,88900.0,0.59139879]
[1764952575688,0.01985287,88929.0,88894.0,0.05878]
[1764952575849,0.01379606,88928.0,88895.0,0.02192173]
[1764952576049,0.02190399,88925.0,88900.0,0.59139879]
[1764952576251,0.02351686,88925.0,88900.0,0.59139879]
[1764952576559,0.59139879,88920.0,88882.0,0.00139934]
[1764952576803,0.06252299,88921.0,88882.0,0.00039934]
[1764952576960,0.002,88883.0,88882.0,0.00039934]
[1764952577357,0.01824,88910.0,88882.0,0.05917934]
[1764952577670,0.01824,88915.0,88905.0,0.02192173]
[1764952577876,0.01824,88915.0,88900.0,0.59139879]
[1764952578298,0.01824,88915.0,88901.0,0.06221304]
[1764952578496,0.01824,88915.0,88901.0,0.06452719]
[1764952578673,0.01824,88915.0,88905.0,0.59139879]
[1764952578904,0.06252299,88914.0,88905.0,0.59139879]
[1764952579311,0.06252299,88914.0,88906.0,0.06501788]
[1764952579519,0.06252299,88914.0,88902.0,0.02192173]
[1764952580047,0.01824,88915.0,88902.0,0.02192173]
[1764952580252,0.06252299,88913.0,88905.0,0.002]
[1764952580386,0.06252299,88913.0,88903.0,0.0002441]
[1764952580580,0.06252299,88911.0,88903.0,0.0002441]
[1764952580809,0.45124586,88904.0,88903.0,0.0002441]
[1764952581014,0.38713586,88904.0,88903.0,0.0002441]
[1764952581180,0.50058985,88904.0,88903.0,0.0002441]
[1764952581378,0.47868586,88904.0,88903.0,0.0002441]
[1764952581602,0.50058985,88904.0,88903.0,0.0002441]
[1764952582146,0.49692586,88904.0,88903.0,0.0002441]
[1764952583142,0.42337586,88904.0,88903.0,0.0012441]
[1764952583349,0.40837586,88904.0,88903.0,0.0002441]
[1764952583550,0.49992586,88904.0,88903.0,0.0002441]
[1764952583703,0.57703586,88904.0,88903.0,0.0012441]
[1764952584113,0.6461484,88904.0,88903.0,0.0012441]
[1764952584318,0.60193985,88904.0,88903.0,0.0012441]
[1764952584518,0.59893985,88904.0,88903.0,0.0012441]
[1764952584958,0.60193985,88904.0,88903.0,0.0012441]
[1764952585538,0.06252299,88885.0,88840.0,0.65017879]
[1764952585756,0.00099999,88900.0,88840.0,0.65017879]
[1764952585757,0.46983299,88883.0,88841.0,0.01518029]
[1764952586073,0.46983299,88883.0,88850.0,0.59139879]
[1764952586074,0.49173698,88883.0,88850.0,0.59139879]
[1764952586279,0.58596698,88883.0,88850.0,0.59139879]
[1764952586490,0.58596698,88883.0,88840.0,0.80405825]
[1764952586692,0.56406299,88883.0,88841.0,0.01518029]
[1764952586897,0.58596698,88883.0,88882.0,0.00239934]
[1764952587103,0.58596698,88883.0,88882.0,0.00039934]
[1764952587485,0.59696698,88883.0,88882.0,0.00239934]
[1764952588700,0.38552299,88882.0,88830.0,0.0004]
[1764952588873,0.38552299,88859.0,88830.0,0.00079843]
[1764952589074,0.06252299,88857.0,88830.0,0.00079843]
[1764952589284,0.06252299,88854.0,88830.0,0.00079843]
[1764952590009,0.06583,88858.0,88830.0,0.00079843]
[1764952590010,0.38552299,88852.0,88830.0,0.00079843]
[1764952590598,0.38552299,88852.0,88830.0,0.77124629]
[1764952590796,0.06252299,88850.0,88830.0,0.00179843]
[1764952591119,0.06252299,88844.0,88830.0,0.00179843]
[1764952591300,0.06252299,88850.0,88830.0,0.74707668]
[1764952591525,0.06252299,88848.0,88831.0,0.07263153]
[1764952591723,0.06252299,88848.0,88832.0,0.01146181]
[1764952591932,0.01824,88849.0,88832.0,0.01146181]
[1764952592153,0.002,88852.0,88831.0,0.06117]
[1764952592154,0.002,88852.0,88848.0,0.06117]
[1764952592353,0.002,88852.0,88851.0,0.06117]
[1764952592554,0.01824,88854.0,88833.0,0.06117]
[1764952592759,0.002,88852.0,88840.0,0.74527825]
[1764952592961,0.002,88852.0,88845.0,0.02192173]
[1764952593293,0.01824,88854.0,88841.0,0.01291969]
[1764952593434,0.007,88852.0,88830.0,0.00079843]
[1764952593646,0.00861287,88852.0,88830.0,0.76859159]
[1764952593856,0.00261287,88852.0,88831.0,0.06117]
[1764952594069,0.00261287,88852.0,88840.0,0.74527825]
[1764952594070,0.00461287,88852.0,88840.0,0.74527825]
[1764952594307,0.002,88852.0,88851.0,0.06117]
[1764952594472,0.01824,88854.0,88851.0,0.06117]
[1764952594671,0.323,88882.0,88853.0,0.06117]
[1764952594872,0.06252299,88880.0,88853.0,0.06117]
[1764952595092,0.06252299,88878.0,88853.0,0.06117]
[1764952595299,0.06252299,88876.0,88841.0,0.06117]
[1764952595508,0.06252299,88874.0,88845.0,0.001]
[1764952595852,0.09423,88877.0,88845.0,0.0224255]
[1764952595853,0.002,88852.0,88845.0,0.0224255]
[1764952596057,0.06252299,88870.0,88845.0,0.0214255]
[1764952596406,0.06252299,88868.0,88845.0,0.0214255]
[1764952596654,0.06252299,88866.0,88841.0,0.0214255]
[1764952596858,0.06252299,88864.0,88849.0,0.00164886]
[1764952597069,0.06252299,88862.0,88849.0,0.00164886]
[1764952597265,0.003,88852.0,88845.0,0.001]
[1764952597470,0.01824,88861.0,88845.0,0.001]
[1764952597471,0.06252299,88860.0,88845.0,0.001]
[1764952597791,0.15675299,88860.0,88845.0,0.001]
[1764952598213,0.11011299,88846.0,88845.0,0.001]
[1764952598471,0.06252299,88845.0,88830.0,0.00079843]
[1764952599357,0.06252299,88843.0,88830.0,0.00079843]
[1764952599559,0.12865299,88831.0,88830.0,0.00079843]
[1764952599767,0.14689299,88831.0,88830.0,0.00179843]
[1764952599945,0.24112299,88831.0,88830.0,0.00179843]
[1764952600345,0.56412299,88831.0,88830.0,0.00079843]
[1764952600744,0.56812299,88831.0,88830.0,0.00079843]
[1764952600948,0.45165299,88831.0,88830.0,0.00079843]
[1764952601147,0.40376299,88831.0,88830.0,0.00079843]
[1764952601351,0.39452299,88831.0,88830.0,0.00079843]
[1764952601652,0.09423,88842.0,88830.0,0.00079843]
[1764952601990,0.14689299,88831.0,88830.0,0.00179843]
[1764952602185,0.15589299,88831.0,88830.0,0.00079843]
[1764952602456,0.25012299,88831.0,88830.0,0.00079843]
[1764952602618,0.25112299,88831.0,88830.0,0.00079843]
[1764952603024,0.25173586,88831.0,88830.0,0.00079843]
[1764952603249,0.57473586,88831.0,88830.0,0.00079843]
[1764952603447,0.57673586,88831.0,88830.0,0.00079843]
[1764952603626,0.56773586,88831.0,88830.0,0.00079843]
[1764952603825,0.58963985,88831.0,88830.0,0.00079843]
[1764952604031,0.59563985,88831.0,88830.0,0.00079843]
[1764952604232,0.58963985,88831.0,88830.0,0.00079843]
[1764952604766,0.59763985,88831.0,88830.0,0.00079843]
[1764952604970,0.58863985,88831.0,88830.0,0.00079843]
[1764952605595,0.58763985,88831.0,88830.0,0.00079843]
[1764952605911,0.58963985,88831.0,88830.0,0.00079843]
[1764952606472,0.59963985,88831.0,88830.0,0.00079843]
[1764952606791,0.56773586,88831.0,88830.0,0.00079843]
[1764952607295,0.51521287,88831.0,88830.0,0.00079843]
[1764952607592,0.57573586,88831.0,88830.0,0.00079843]
[1764952607795,0.57573586,88831.0,88830.0,0.00302792]
[1764952607958,0.57773586,88831.0,88830.0,0.00302792]
[1764952608160,0.48350586,88831.0,88830.0,0.00302792]
[1764952608496,0.35285287,88831.0,88830.0,0.00302792]
[1764952608801,0.03185287,88831.0,88830.0,0.00302792]
[1764952608977,0.01361287,88831.0,88830.0,0.00302792]
[1764952609182,0.03185287,88831.0,88830.0,0.00302792]
[1764952609421,0.01985287,88831.0,88830.0,0.00302792]
[1764952609732,0.02085287,88831.0,88830.0,0.00302792]
[1764952609926,0.02685287,88831.0,88830.0,0.00302792]
[1764952610270,0.25199586,88831.0,88830.0,0.00302792]
[1764952611512,0.25199586,88831.0,88810.0,0.0004]
[1764952611513,0.38552299,88830.0,88810.0,0.0004]
[1764952611726,0.09532299,88811.0,88810.0,0.0004]
[1764952611905,0.43656299,88811.0,88810.0,0.0004]
[1764952612134,0.53599299,88811.0,88810.0,0.0004]
[1764952612297,0.55789698,88811.0,88810.0,0.0004]
[1764952612497,0.53599299,88811.0,88810.0,0.0004]
[1764952613405,0.54299299,88811.0,88810.0,0.0004]
[1764952613601,0.53599299,88811.0,88810.0,0.0004]
[1764952613948,0.60210553,88811.0,88810.0,0.0004]
[1764952614089,0.57089698,88811.0,88810.0,0.0004]
[1764952614292,0.57289698,88811.0,88810.0,0.0004]
[1764952614734,0.54899299,88811.0,88771.0,0.02119671]
[1764952615091,0.54899299,88811.0,88751.0,0.04361]
[1764952615092,0.06252299,88769.0,88751.0,0.04361]
[1764952615300,0.01824,88768.0,88752.0,0.04312244]
[1764952615507,0.01824,88768.0,88758.0,0.74527825]
[1764952615713,0.01824,88768.0,88759.0,0.02119903]
[1764952615933,0.04986,88792.0,88767.0,0.06033]
[1764952616143,0.01824,88784.0,88768.0,0.02119688]
[1764952617375,0.01824,88784.0,88776.0,0.02192173]
[1764952617768,0.02024,88784.0,88771.0,0.0211962]
[1764952618738,0.06252299,88781.0,88749.0,0.04361]
[1764952618984,0.06413586,88781.0,88776.0,0.001]
[1764952619559,0.06252299,88779.0,88776.0,0.001]
[1764952619764,0.06413586,88779.0,88776.0,0.001]
[1764952619966,0.06549,88777.0,88761.0,0.00821012]
[1764952620168,0.06413586,88779.0,88750.0,0.74527825]
[1764952620169,0.06413586,88779.0,88760.0,0.74527825]
[1764952620396,0.06413586,88779.0,88771.0,0.001]
[1764952620609,0.38552299,88777.0,88771.0,0.001]
[1764952620860,0.06252299,88771.0,88751.0,0.02062379]
[1764952621184,0.06252299,88771.0,88752.0,0.0809512]
[1764952621185,0.00161287,88771.0,88752.0,0.0809512]
[1764952621307,0.00161287,88771.0,88761.0,0.004]
[1764952621919,0.01824,88780.0,88760.0,0.74527825]
[1764952622124,0.06252299,88779.0,88761.0,0.02058495]
[1764952622332,0.01824,88778.0,88751.0,0.00820188]
[1764952622532,0.01824,88778.0,88766.0,0.02192173]
[1764952622733,0.00161287,88780.0,88767.0,0.07672]
[1764952622940,0.01824,88777.0,88767.0,0.07672]
[1764952623434,0.01824,88777.0,88775.0,0.02192173]
[1764952623694,0.01824,88778.0,88771.0,0.02192173]
[1764952623905,0.01824,88778.0,88768.0,0.76543372]
[1764952624051,0.01824,88778.0,88769.0,0.09067537]
[1764952624285,0.01824,88778.0,88770.0,0.02192173]
[1764952624484,0.10904,88778.0,88750.0,0.74527825]
[1764952624688,0.10904,88778.0,88760.0,0.74527825]
[1764952624911,0.06252299,88777.0,88771.0,0.003]
[1764952625391,0.06252299,88771.0,88752.0,0.02192173]
[1764952625550,0.06252299,88771.0,88750.0,0.74527825]
[1764952625551,0.38552299,88771.0,88753.0,0.08168474]
[1764952626150,0.06252299,88777.0,88765.0,0.02192173]
[1764952626347,0.06252299,88777.0,88760.0,0.74527825]
[1764952626348,0.01824,88776.0,88761.0,0.00534662]
[1764952626529,0.01824,88776.0,88765.0,0.02192173]
[1764952627207,0.04885,88766.0,88740.0,0.0646]
[1764952627340,0.06252299,88774.0,88756.0,0.02192173]
[1764952627545,0.00161287,88774.0,88761.0,0.002]
[1764952627954,0.06252299,88773.0,88751.0,0.01886658]
[1764952628294,0.06413586,88773.0,88754.0,0.02192173]
[1764952628592,0.38552299,88771.0,88749.0,0.04761]
[1764952628735,0.38713586,88771.0,88750.0,0.02192173]
[1764952628937,0.06252299,88769.0,88749.0,0.004]
[1764952629174,0.06413586,88769.0,88749.0,0.004]
[1764952629395,0.06252299,88767.0,88749.0,0.004]
[1764952629595,0.06252299,88767.0,88748.0,0.04361]
[1764952629596,0.06413586,88767.0,88748.0,0.04361]
[1764952629959,0.06413586,88767.0,88751.0,0.002]
[1764952630447,0.01824,88766.0,88761.0,0.02192173]
[1764952630845,0.002,88769.0,88760.0,0.02192173]
[1764952631071,0.002,88769.0,88768.0,0.02192173]
[1764952631274,0.01824,88775.0,88754.0,0.02071524]
[1764952631489,0.33679606,88778.0,88760.0,0.74527825]
[1764952631775,0.002,88767.0,88761.0,0.02371477]
[1764952631964,0.01824,88777.0,88761.0,0.02371477]
[1764952632160,0.01824,88777.0,88767.0,0.02192173]
[1764952632491,0.01824,88777.0,88761.0,0.003]
[1764952632492,0.008,88769.0,88761.0,0.003]
[1764952632701,0.15332299,88776.0,88761.0,0.01134604]
[1764952632702,0.06252299,88774.0,88761.0,0.01134604]
[1764952632879,0.06252299,88774.0,88751.0,0.02192173]
[1764952633083,0.002,88767.0,88754.0,0.001]
[1764952633286,0.06252299,88772.0,88754.0,0.001]
[1764952633704,0.06252299,88772.0,88752.0,0.01963479]
[1764952633915,0.37325779,88792.0,88760.0,0.74527825]
[1764952634127,0.12283606,88791.0,88761.0,0.09518242]
[1764952634344,0.12444893,88791.0,88761.0,0.09518242]
[1764952634559,0.4138,88790.0,88761.0,0.09418242]
[1764952634775,0.002,88769.0,88761.0,0.09418242]
[1764952634967,0.06252299,88788.0,88763.0,0.02192173]
[1764952635168,0.06252299,88786.0,88764.0,0.01965392]
[1764952635474,0.06252299,88784.0,88764.0,0.01965392]
[1764952635684,0.06252299,88782.0,88764.0,0.01965392]
[1764952635875,0.06252299,88780.0,88757.0,0.02192173]
[1764952636055,0.002,88769.0,88758.0,0.01925614]
[1764952636265,0.06252299,88778.0,88758.0,0.01925614]
[1764952636462,0.06252299,88776.0,88758.0,0.01925614]
[1764952636674,0.01379606,88775.0,88759.0,0.01197667]
[1764952636988,0.01379606,88775.0,88768.0,0.02192173]
[1764952637202,0.323,88779.0,88768.0,0.02192173]
[1764952637531,0.323,88779.0,88765.0,0.02192173]
[1764952637956,0.01379606,88778.0,88761.0,0.02192173]
[1764952638155,0.323,88782.0,88761.0,0.02048357]
[1764952638156,0.07631905,88781.0,88761.0,0.02048357]
[1764952638332,0.002,88769.0,88761.0,0.02048357]
[1764952638565,0.16711905,88781.0,88761.0,0.02048357]
[1764952638766,0.16711905,88781.0,88759.0,0.01297667]
[1764952638767,0.38552299,88779.0,88759.0,0.01297667]
[1764952638972,0.06252299,88777.0,88760.0,0.00915655]
[1764952639144,0.06252299,88775.0,88760.0,0.00915655]
[1764952639349,0.4138,88778.0,88754.0,0.01935836]
[1764952639350,0.06252299,88773.0,88754.0,0.01935836]
[1764952639548,0.002,88769.0,88754.0,0.01935836]
[1764952639767,0.002,88769.0,88765.0,0.001]
[1764952639970,0.323,88770.0,88765.0,0.001]
[1764952640187,0.38552299,88765.0,88741.0,0.02048572]
[1764952640387,0.01824,88764.0,88740.0,0.74527825]
[1764952640568,0.01824,88764.0,88754.0,0.001]
[1764952641170,0.01824,88764.0,88754.0,0.00600977]
[1764952641531,0.01863754,88764.0,88754.0,0.00600977]
[1764952641815,0.00039754,88764.0,88763.0,0.0596]
[1764952641982,0.00039754,88764.0,88763.0,0.08152173]
[1764952642191,0.00039754,88764.0,88763.0,0.1492739]
[1764952642394,0.00039754,88764.0,88763.0,0.15623402]
[1764952642571,0.00039754,88764.0,88763.0,0.07471229]
[1764952642769,0.00339754,88764.0,88763.0,0.07471229]
[1764952642995,0.00339754,88764.0,88763.0,0.08823604]
[1764952643173,0.00039754,88764.0,88763.0,0.17275777]
[1764952643375,0.00339754,88764.0,88763.0,0.17275777]
[1764952643582,0.00339754,88764.0,88763.0,0.16975777]
[1764952643989,0.00339754,88764.0,88763.0,0.17375777]
[1764952644597,0.02876939,88809.0,88781.0,0.02192173]
[1764952644770,0.01824,88798.0,88781.0,0.0220414]
[1764952644976,0.01824,88798.0,88782.0,0.10272197]
[1764952645424,0.01824,88798.0,88782.0,0.02599]
[1764952645425,0.01379606,88797.0,88782.0,0.02599]
[1764952645835,0.01379606,88797.0,88781.0,0.00011967]
[1764952645836,0.10692,88783.0,88781.0,0.00011967]
[1764952646392,0.10830299,88783.0,88782.0,0.001]
[1764952646596,0.43130299,88783.0,88781.0,0.00011967]
[1764952646826,0.48236304,88782.0,88781.0,0.00011967]
[1764952647039,0.53784299,88782.0,88781.0,0.00011967]
[1764952647239,0.53784299,88782.0,88755.0,0.08691685]
[1764952647441,0.06252299,88778.0,88755.0,0.08731439]
[1764952647823,0.06252299,88776.0,88755.0,0.08731439]
[1764952647965,0.06252299,88773.0,88755.0,0.08731439]
[1764952648167,0.06413586,88773.0,88755.0,0.00039754]
[1764952648505,0.04578,88756.0,88755.0,0.00039754]
[1764952648650,0.12677287,88756.0,88755.0,0.00039754]
[1764952648857,0.06563287,88756.0,88755.0,0.00639754]
[1764952649157,0.01824,88756.0,88755.0,0.00139754]
[1764952649469,0.01824,88756.0,88755.0,0.00839754]
[1764952649670,0.04578,88769.0,88756.0,0.02192173]
[1764952649897,0.01824,88768.0,88756.0,0.02192173]
[1764952650189,0.01824,88768.0,88757.0,0.06760822]
[1764952650996,0.01985287,88768.0,88755.0,0.00039754]
[1764952651201,0.002,88756.0,88755.0,0.00639754]
[1764952651579,0.01985287,88768.0,88755.0,0.00039754]
[1764952651968,0.02185287,88768.0,88757.0,0.007]
[1764952652169,0.01985287,88768.0,88755.0,0.00039754]
[1764952652372,0.01985287,88768.0,88757.0,0.002]
[1764952653122,0.01985287,88768.0,88756.0,0.06358258]
[1764952653670,0.01985287,88768.0,88761.0,0.02192173]
[1764952653923,0.01824,88770.0,88762.0,0.0193425]
[1764952654093,0.01824,88770.0,88761.0,0.02192173]
[1764952654094,0.01824,88774.0,88761.0,0.04126505]
[1764952654334,0.002,88768.0,88762.0,0.07590081]
[1764952654733,0.002,88768.0,88767.0,0.08152173]
[1764952654934,0.004,88768.0,88767.0,0.08152173]
[1764952655159,0.02891182,88804.0,88767.0,0.1192]
[1764952655498,0.01985287,88796.0,88776.0,0.02192173]
[1764952655775,0.01985287,88796.0,88777.0,0.06756847]
[1764952655920,0.07631905,88795.0,88777.0,0.06756847]
[1764952656121,0.01540893,88795.0,88777.0,0.06756847]
[1764952656477,0.01824,88794.0,88780.0,0.59416295]
[1764952657237,0.01824,88794.0,88777.0,0.001]
[1764952657576,0.01379606,88793.0,88777.0,0.001]
[1764952657796,0.06252299,88792.0,88777.0,0.001]
[1764952657999,0.00161287,88795.0,88784.0,0.02192173]
[1764952658213,0.01824,88792.0,88785.0,0.06160847]
[1764952659118,0.01824,88792.0,88785.0,0.06172822]
[1764952659545,0.02024,88792.0,88785.0,0.07172822]
[1764952659748,0.002,88792.0,88785.0,0.07472822]
[1764952660367,0.002,88792.0,88791.0,0.08152173]
[1764952660568,0.002,88792.0,88791.0,0.16270673]
[1764952660923,0.002,88792.0,88791.0,0.140785]
[1764952661128,0.002,88792.0,88791.0,0.16270673]
[1764952661327,0.01824,88811.0,88796.0,0.02192173]
[1764952661554,0.01824,88811.0,88800.0,0.59416295]
[1764952661756,0.01824,88811.0,88801.0,0.06160847]
[1764952662532,0.01824,88811.0,88791.0,0.021585]
[1764952662533,0.01824,88811.0,88799.0,0.02192173]
[1764952663433,0.01824,88811.0,88792.0,0.02192173]
[1764952663563,0.01379606,88810.0,88792.0,0.02192173]
[1764952663746,0.01540893,88810.0,88792.0,0.02192173]
[1764952663954,0.06252299,88809.0,88785.0,0.00011975]